fUST/lending_fUST_20250109
["ID","MTS","AMOUNT","RATE_DAILY","PERIOD"]
[348194939,1736379046927,-5125.65,0.00021369,3]
[348194940,1736379046935,-542.74,0.00021369,3]
[348194941,1736379046945,-500.0,0.00021369,3]
[348194942,1736379046954,-377.44405178,0.00021378,2]
[348194943,1736379046963,-500.0,0.00021414,2]
[348194944,1736379046973,-611.45394205,0.00021414,2]
[348194945,1736379046983,-500.0,0.00021414,2]
[348194946,1736379046992,-725.28030715,0.00021417,2]
[348194947,1736379047002,-725.28030715,0.00021555,2]
[348194948,1736379047011,-1383.67,0.0002159,3]
[348194949,1736379047021,-1866.0,0.000216,4]
[348194950,1736379047031,-151.0,0.000216,2]
[348194951,1736379047041,-151.0,0.000216,2]
[348194952,1736379047050,-500.0,0.00021643,3]
[348194953,1736379047060,-655.49,0.00021643,3]
[348194954,1736379047069,-500.0,0.00021643,3]
[348194955,1736379047079,-764.72,0.00021643,3]
[348194956,1736379047088,-5125.65,0.00021643,3]
[348194957,1736379047098,-542.74,0.00021643,3]
[348194958,1736379047108,-341.77881931,0.00021643,3]
[348194959,1736379047118,-725.28030715,0.00021693,2]
[348194960,1736379047129,-725.28030715,0.00021831,2]
[348194961,1736379047139,-345.89639806,0.00021864,3]
[348194962,1736379047152,-1037.77360194,0.00021864,3]
[348194963,1736379047162,-1000.0,0.00021915,2]
[348194964,1736379047171,-500.0,0.00021917,3]
[348194965,1736379047180,-655.49,0.00021917,3]
[348194966,1736379047190,-500.0,0.00021917,3]
[348194967,1736379047199,-284.5282999,0.00021917,3]
[348194968,1736379047210,-480.1917001,0.00021917,3]
[348194969,1736379047219,-206.28357175,0.00021917,3]
[348194970,1736379047231,-4919.36642825,0.00021917,3]
[348194971,1736379047241,-542.74,0.00021917,3]
[348194972,1736379047250,-1000.0,0.00021962,2]
[348194973,1736379047260,-1000.0,0.00021962,2]
[348194974,1736379047269,-725.28030715,0.00021969,2]
[348194975,1736379047279,-7824.14099874,0.00022,4]
[348194976,1736379047291,-788.66602843,0.00022,4]
[348194977,1736379047300,-312.03794695,0.00022,2]
[348194978,1736379047312,-1187.96205305,0.00022,2]
[348194979,1736379047321,-24581.09794695,0.00022,2]
[348194980,1736379047332,-6002.88789974,0.00022,2]
[348194981,1736379047342,-151.0,0.00022,5]
[348194982,1736379047351,-151.0,0.00022027,7]
[348194983,1736379047360,-153.0,0.00022056,2]
[348194984,1736379047370,-831.46,0.000221,2]
[348194985,1736379047379,-151.0,0.000221,7]
[348194986,1736379047388,-725.28030715,0.00022107,2]
[348194987,1736379047397,-153.0,0.0002211,2]
[348194988,1736379047407,-1383.67,0.00022138,3]
[348194989,1736379047416,-1308.9,0.00022175,3]
[348194990,1736379047425,-500.0,0.00022191,3]
[348194991,1736379047434,-655.49,0.00022191,3]
[348194992,1736379047444,-500.0,0.00022191,3]
[348194993,1736379047453,-764.72,0.00022191,3]
[348194994,1736379047462,-5125.65,0.00022191,3]
[348194995,1736379047472,-542.74,0.00022191,3]
[348194996,1736379047481,-725.28030715,0.00022245,2]
[348194997,1736379047489,-725.28030715,0.00022383,2]
[348194998,1736379047499,-473.0,0.000224,7]
[348194999,1736379047512,-151.0,0.000224,6]
[348195000,1736379047521,-151.0,0.00022406,7]
[348195001,1736379047530,-151.0,0.00022406,7]
[348195002,1736379047540,-1383.67,0.00022412,3]
[348195003,1736379047551,-1308.9,0.00022449,3]
[348195004,1736379047560,-500.0,0.00022465,3]
[348195005,1736379047570,-655.49,0.00022465,3]
[348195006,1736379047581,-500.0,0.00022465,3]
[348195007,1736379047591,-764.72,0.00022465,3]
[348195008,1736379047601,-1284.82337607,0.00022465,3]
[348195010,1736379580997,163.425017,0.00013973,2]
[348195012,1736380027191,-302.90913937,0.00019,2]
[348195013,1736380027212,-220.22517317,0.00019078,2]
[348195014,1736380027234,-300.0,0.00019176,2]
[348195015,1736380027256,-194.59649089,0.00019177,2]
[348195016,1736380027279,-230.8987318,0.00019177,2]
[348195017,1736380037122,-175.57692924,0.00019078,2]
[348195018,1736380037148,-269.1012682,0.00019177,2]
[348195019,1736380037173,-414.66369114,0.00019177,2]
[348195020,1736380038088,-85.33630886,0.00019177,2]
[348195021,1736380038112,-500.0,0.00019177,2]
[348195022,1736380038137,-500.0,0.00019177,2]
[348195023,1736380038161,-645.20457944,0.00019177,2]
[348195024,1736380038184,-500.0,0.00019177,2]
[348195025,1736380038207,-500.0,0.00019177,2]
[348195026,1736380038230,-169.14594692,0.00019177,2]
[348195027,1736380038253,-235.43286021,0.00019177,2]
[348195028,1736380038278,-500.0,0.00019177,2]
[348195029,1736380038300,-253.38361582,0.00019177,2]
[348195030,1736380038322,-500.0,0.00019177,2]
[348195031,1736380038343,-500.0,0.00019177,2]
[348195032,1736380038367,-151.0,0.00019178,2]
[348195033,1736380038389,-151.0,0.00019178,2]
[348195034,1736380038415,-151.0,0.00019178,2]
[348195035,1736380038436,-500.0,0.00019178,2]
[348195036,1736380038457,-500.0,0.00019178,2]
[348195037,1736380038478,-500.0,0.00019178,2]
[348195038,1736380038499,-500.0,0.00019178,2]
[348195039,1736380038521,-500.0,0.00019178,2]
[348195040,1736380038544,-296.41113346,0.00019178,2]
[348195041,1736380154123,-235.0,0.0001843,2]
[348195042,1736380154144,-16433.85317805,0.00018431,2]
[348195043,1736380158211,-409.19426533,0.00018431,2]
[348195053,1736380231915,-25.62417852,0.00018431,2]
[348195055,1736380231928,-395.04799081,0.000189,2]
[348195057,1736380231938,-399.67508517,0.00019173,2]
[348195059,1736380231948,-460.31076821,0.00019173,2]
[348195061,1736380231958,-497.34361056,0.00019178,2]
[348195063,1736380231968,-180.96586757,0.00019178,2]
[348195065,1736380231977,-501.5103037,0.00019178,2]
[348195067,1736380231986,-350.22603315,0.00019178,2]
[348195083,1736380232135,-60.45178492,0.00019178,2]
[348195085,1736380232145,-500.0,0.00019178,2]
[348195087,1736380232154,-500.0,0.00019178,2]
[348195089,1736380232164,-500.0,0.00019178,2]
[348195091,1736380232173,-500.0,0.00019178,2]
[348195093,1736380232183,-500.0,0.00019178,2]
[348195095,1736380232192,-500.0,0.00019178,2]
[348195097,1736380232202,-500.0,0.00019178,2]
[348195099,1736380232211,-552.32105813,0.00019178,2]
[348195101,1736380232220,-296.83845014,0.00019178,2]
[348195103,1736380232230,-367.61,0.00019178,2]
[348195105,1736380232239,-500.0,0.00019178,2]
[348195107,1736380232249,-500.0,0.00019178,2]
[348195109,1736380232260,-500.0,0.00019178,2]
[348195111,1736380232270,-500.0,0.00019178,2]
[348195113,1736380232279,-500.0,0.00019178,2]
[348195115,1736380232289,-500.0,0.00019178,2]
[348195117,1736380232298,-500.0,0.00019178,2]
[348195119,1736380232308,-500.0,0.00019178,2]
[348195121,1736380232318,-500.0,0.00019178,2]
[348195123,1736380232327,-500.0,0.00019178,2]
[348195125,1736380232337,-500.0,0.00019178,2]
[348195127,1736380232346,-500.0,0.00019178,2]
[348195129,1736380232355,-500.0,0.00019178,2]
[348195131,1736380232365,-500.0,0.00019178,2]
[348195133,1736380232375,-500.0,0.00019178,2]
[348195135,1736380232384,-500.0,0.00019178,2]
[348195137,1736380232393,-500.0,0.00019178,2]
[348195140,1736380232403,-500.0,0.00019178,2]
[348195142,1736380232412,-500.0,0.00019178,5]
[348195144,1736380232422,-500.0,0.00019178,2]
[348195146,1736380232431,-82.88439998,0.00019178,2]
[348195150,1736380232561,-417.11560002,0.00019178,2]
[348195151,1736380232571,-500.0,0.00019178,2]
[348195152,1736380232581,-500.0,0.00019178,2]
[348195153,1736380232591,-442.87583151,0.00019178,2]
[348195189,1736380237885,-57.12416849,0.00019178,2]
[348195191,1736380237895,-500.0,0.00019178,2]
[348195193,1736380237905,-177.76554348,0.00019178,2]
[348195195,1736380237919,-322.23445652,0.00019178,2]
[348195197,1736380237928,-500.0,0.00019178,2]
[348195199,1736380237937,-500.0,0.00019178,2]
[348195201,1736380237947,-436.02622618,0.00019178,2]
[348195203,1736380237956,-378.9637793,0.00019178,2]
[348195206,1736380237969,-121.0362207,0.00019178,2]
[348195208,1736380237978,-501.97760397,0.00019178,2]
[348195209,1736380237988,-500.0,0.00019178,2]
[348195212,1736380237998,-500.0,0.00019178,2]
[348195213,1736380238007,-500.0,0.00019178,2]
[348195215,1736380238018,-578.53219428,0.00019178,2]
[348195218,1736380238027,-500.0,0.00019178,2]
[348195219,1736380238038,-500.0,0.00019178,2]
[348195222,1736380238048,-500.0,0.00019178,2]
[348195223,1736380238057,-500.0,0.00019178,2]
[348195226,1736380238067,-500.0,0.00019178,2]
[348195227,1736380238076,-500.0,0.00019178,2]
[348195229,1736380238085,-120.00731737,0.00019178,2]
[348195232,1736380238098,-379.99268263,0.00019178,2]
[348195234,1736380238108,-500.0,0.00019178,2]
[348195236,1736380238117,-500.0,0.00019178,2]
[348195238,1736380238127,-500.0,0.00019178,2]
[348195240,1736380238137,-500.0,0.00019178,2]
[348195242,1736380238146,-500.0,0.00019178,2]
[348195244,1736380238155,-500.0,0.00019178,2]
[348195246,1736380238164,-500.0,0.00019178,2]
[348195248,1736380238174,-500.0,0.00019178,2]
[348195250,1736380238183,-500.0,0.00019178,2]
[348195252,1736380238192,-500.0,0.00019178,2]
[348195254,1736380238201,-500.0,0.00019178,2]
[348195256,1736380238211,-509.20099135,0.00019178,2]
[348195258,1736380238220,-500.0,0.00019178,2]
[348195260,1736380238230,-500.0,0.00019178,2]
[348195262,1736380238239,-500.0,0.00019178,2]
[348195264,1736380238249,-500.0,0.00019178,2]
[348195266,1736380238259,-500.0,0.00019178,2]
[348195268,1736380238270,-500.0,0.00019178,2]
[348195270,1736380238280,-614.8,0.00019178,2]
[348195272,1736380238290,-500.0,0.00019178,2]
[348195274,1736380238300,-500.0,0.00019178,2]
[348195276,1736380238309,-500.0,0.00019178,2]
[348195278,1736380238319,-500.0,0.00019178,2]
[348195280,1736380238329,-500.0,0.00019178,2]
[348195282,1736380238339,-500.0,0.00019178,2]
[348195284,1736380238349,-500.0,0.00019178,2]
[348195286,1736380238360,-500.0,0.00019178,2]
[348195288,1736380238369,-500.0,0.00019178,2]
[348195290,1736380238379,-500.0,0.00019178,2]
[348195292,1736380238388,-500.0,0.00019178,2]
[348195294,1736380238399,-500.0,0.00019178,2]
[348195296,1736380238408,-500.0,0.00019178,2]
[348195298,1736380238418,-500.0,0.00019178,2]
[348195300,1736380238428,-500.0,0.00019178,2]
[348195302,1736380238437,-500.0,0.00019178,2]
[348195304,1736380238446,-578.58864109,0.00019178,2]
[348195306,1736380238455,-500.0,0.00019178,2]
[348195308,1736380238465,-500.0,0.00019178,2]
[348195310,1736380238474,-618.19,0.00019178,2]
[348195312,1736380238484,-500.0,0.00019178,2]
[348195314,1736380238494,-500.0,0.00019178,2]
[348195316,1736380238504,-500.0,0.00019178,2]
[348195318,1736380238515,-500.0,0.00019178,2]
[348195319,1736380238524,-500.0,0.00019178,2]
[348195321,1736380238534,-500.0,0.00019178,2]
[348195324,1736380238544,-500.0,0.00019178,2]
[348195326,1736380238553,-500.0,0.00019178,2]
[348195328,1736380238563,-500.0,0.00019178,2]
[348195330,1736380238573,-500.0,0.00019178,2]
[348195332,1736380238582,-500.0,0.00019178,2]
[348195334,1736380238592,-500.0,0.00019178,2]
[348195336,1736380238602,-340.0,0.00019178,2]
[348195338,1736380238611,-500.0,0.00019178,2]
[348195340,1736380238620,-527.97,0.00019178,2]
[348195342,1736380238629,-500.0,0.00019178,2]
[348195344,1736380238639,-500.0,0.00019178,2]
[348195346,1736380238648,-500.0,0.00019178,2]
[348195348,1736380238657,-240.4097196,0.00019178,2]
[348195350,1736380238667,-503.42550285,0.00019178,2]
[348195352,1736380238676,-500.0,0.00019178,2]
[348195354,1736380238686,-500.0,0.00019178,2]
[348195356,1736380238695,-500.0,0.00019178,2]
[348195358,1736380238705,-500.0,0.00019178,2]
[348195360,1736380238714,-500.0,0.00019178,2]
[348195362,1736380238723,-500.0,0.00019178,2]
[348195364,1736380238732,-500.0,0.00019178,2]
[348195366,1736380238742,-500.0,0.00019178,2]
[348195368,1736380238751,-500.0,0.00019178,2]
[348195370,1736380238761,-500.0,0.00019178,2]
[348195372,1736380238771,-500.0,0.00019178,2]
[348195374,1736380238780,-500.0,0.00019178,2]
[348195376,1736380238789,-500.0,0.00019178,2]
[348195378,1736380238799,-500.0,0.00019178,2]
[348195380,1736380238808,-500.0,0.00019178,2]
[348195382,1736380238817,-500.0,0.00019178,2]
[348195384,1736380238826,-500.0,0.00019178,2]
[348195386,1736380238835,-500.0,0.00019178,2]
[348195388,1736380238845,-500.0,0.00019178,2]
[348195390,1736380238854,-500.0,0.00019178,2]
[348195392,1736380238863,-500.0,0.00019178,2]
[348195394,1736380238874,-500.0,0.00019178,2]
[348195396,1736380238884,-500.0,0.00019178,2]
[348195398,1736380238893,-500.0,0.00019178,2]
[348195400,1736380238903,-500.0,0.00019178,2]
[348195402,1736380238912,-500.0,0.00019178,2]
[348195404,1736380238922,-208.36951266,0.00019178,2]
[348195406,1736380238932,-500.0,0.00019178,2]
[348195408,1736380238942,-500.0,0.00019178,2]
[348195410,1736380238953,-500.0,0.00019178,2]
[348195412,1736380238963,-500.0,0.00019178,2]
[348195414,1736380238972,-500.0,0.00019178,2]
[348195416,1736380238982,-500.0,0.00019178,2]
[348195418,1736380238992,-282.8691388,0.00019178,2]
[348195420,1736380239002,-621.436077,0.00019178,2]
[348195422,1736380239011,-500.0,0.00019178,2]
[348195424,1736380239022,-500.0,0.00019178,2]
[348195426,1736380239032,-500.0,0.00019178,2]
[348195428,1736380239041,-500.0,0.00019178,2]
[348195430,1736380239051,-500.0,0.00019178,2]
[348195432,1736380239060,-500.0,0.00019178,2]
[348195434,1736380239070,-500.0,0.00019178,2]
[348195436,1736380239080,-457.84911636,0.00019178,2]
[348195438,1736380239089,-500.0,0.00019178,2]
[348195440,1736380239099,-465.26065455,0.00019178,2]
[348195442,1736380239110,-500.0,0.00019178,2]
[348195444,1736380239120,-500.0,0.00019178,2]
[348195446,1736380239130,-500.0,0.00019178,2]
[348195448,1736380239139,-500.0,0.00019178,2]
[348195450,1736380239149,-500.0,0.00019178,2]
[348195452,1736380239158,-500.0,0.00019178,2]
[348195454,1736380239168,-500.0,0.00019178,2]
[348195456,1736380239177,-500.0,0.00019178,2]
[348195458,1736380239187,-500.0,0.00019178,2]
[348195460,1736380239196,-547.82322841,0.00019178,2]
[348195462,1736380239206,-500.0,0.00019178,2]
[348195464,1736380239215,-500.0,0.00019178,2]
[348195466,1736380239225,-500.0,0.00019178,2]
[348195468,1736380239234,-500.0,0.00019178,2]
[348195470,1736380239244,-500.0,0.00019178,2]
[348195472,1736380239253,-500.0,0.00019178,2]
[348195474,1736380239263,-500.0,0.00019178,2]
[348195476,1736380239272,-500.0,0.00019178,2]
[348195478,1736380239281,-500.0,0.00019178,2]
[348195480,1736380239290,-500.0,0.00019178,2]
[348195482,1736380239300,-500.0,0.00019178,2]
[348195484,1736380239311,-500.0,0.00019178,2]
[348195486,1736380239321,-461.46611614,0.00019178,2]
[348195488,1736380239331,-361.33712646,0.00019178,2]
[348195490,1736380239340,-500.0,0.00019178,2]
[348195492,1736380239351,-500.0,0.00019178,2]
[348195495,1736380239361,-500.0,0.00019178,2]
[348195496,1736380239370,-500.0,0.00019178,2]
[348195498,1736380239379,-500.0,0.00019178,2]
[348195500,1736380239389,-500.0,0.00019178,2]
[348195502,1736380239398,-500.0,0.00019178,2]
[348195504,1736380239408,-500.0,0.00019178,2]
[348195506,1736380239417,-500.0,0.00019178,2]
[348195508,1736380239426,-500.26325349,0.00019178,2]
[348195511,1736380239436,-200.0,0.00019178,2]
[348195513,1736380239446,-500.0,0.00019178,2]
[348195515,1736380239456,-500.0,0.00019178,2]
[348195517,1736380239465,-500.0,0.00019178,2]
[348195519,1736380239475,-502.89526421,0.00019178,2]
[348195521,1736380239485,-500.0,0.00019178,2]
[348195523,1736380239494,-500.0,0.00019178,2]
[348195525,1736380239504,-500.0,0.00019178,2]
[348195526,1736380239513,-586.95019538,0.00019178,2]
[348195528,1736380239523,-485.37895315,0.00019178,2]
[348195531,1736380239533,-500.0,0.00019178,2]
[348195532,1736380239542,-500.0,0.00019178,2]
[348195535,1736380239552,-500.0,0.00019178,2]
[348195537,1736380239561,-533.67,0.00019178,2]
[348195539,1736380239571,-500.0,0.00019178,2]
[348195541,1736380239580,-500.0,0.00019178,2]
[348195543,1736380239590,-500.0,0.00019178,2]
[348195544,1736380239600,-500.0,0.00019178,2]
[348195546,1736380239609,-1031.19,0.00019178,2]
[348195548,1736380239618,-500.0,0.00019178,2]
[348195550,1736380239627,-500.0,0.00019178,2]
[348195552,1736380239636,-500.0,0.00019178,2]
[348195554,1736380239645,-500.0,0.00019178,2]
[348195556,1736380239655,-500.0,0.00019178,2]
[348195558,1736380239664,-500.0,0.00019178,2]
[348195560,1736380239674,-500.0,0.00019178,2]
[348195562,1736380239683,-500.0,0.00019178,2]
[348195564,1736380239692,-500.0,0.00019178,2]
[348195567,1736380239702,-500.0,0.00019178,2]
[348195569,1736380239711,-500.0,0.00019178,2]
[348195571,1736380239721,-659.81,0.00019178,2]
[348195572,1736380239730,-659.81,0.00019178,2]
[348195575,1736380239739,-659.81,0.00019178,2]
[348195576,1736380239749,-659.81,0.00019178,2]
[348195578,1736380239758,-500.0,0.00019178,2]
[348195581,1736380239768,-659.81,0.00019178,2]
[348195582,1736380239777,-500.0,0.00019178,2]
[348195584,1736380239786,-659.81,0.00019178,2]
[348195586,1736380239795,-659.81,0.00019178,2]
[348195588,1736380239804,-500.0,0.00019178,2]
[348195590,1736380239813,-500.0,0.00019178,2]
[348195592,1736380239822,-500.0,0.00019178,2]
[348195594,1736380239831,-500.0,0.00019178,2]
[348195596,1736380239841,-500.0,0.00019178,2]
[348195598,1736380239850,-500.0,0.00019178,2]
[348195600,1736380239860,-500.0,0.00019178,2]
[348195602,1736380239869,-280.5,0.00019178,2]
[348195604,1736380239881,-500.0,0.00019178,2]
[348195606,1736380239891,-4414.37,0.00019178,2]
[348195608,1736380239901,-500.0,0.00019178,2]
[348195610,1736380239911,-500.0,0.00019178,2]
[348195612,1736380239922,-500.0,0.00019178,2]
[348195614,1736380239931,-500.0,0.00019178,2]
[348195616,1736380239940,-500.0,0.00019178,2]
[348195618,1736380239950,-203.04848889,0.00019178,2]
[348195621,1736380239961,-500.0,0.00019178,2]
[348195622,1736380239970,-500.0,0.00019178,2]
[348195625,1736380239979,-500.0,0.00019178,2]
[348195627,1736380239988,-500.0,0.00019178,2]
[348195629,1736380239998,-500.0,0.00019178,2]
[348195631,1736380240008,-500.0,0.00019178,2]
[348195633,1736380240017,-500.0,0.00019178,2]
[348195635,1736380240027,-500.0,0.00019178,2]
[348195637,1736380240036,-500.0,0.00019178,2]
[348195639,1736380240045,-500.0,0.00019178,2]
[348195641,1736380240055,-500.0,0.00019178,2]
[348195643,1736380240064,-588.85,0.00019178,2]
[348195645,1736380240074,-558.68,0.00019178,2]
[348195647,1736380240084,-500.0,0.00019178,2]
[348195649,1736380240094,-500.0,0.00019178,2]
[348195651,1736380240103,-500.0,0.00019178,2]
[348195653,1736380240113,-500.0,0.00019178,2]
[348195655,1736380240122,-500.0,0.00019178,2]
[348195657,1736380240132,-500.0,0.00019178,2]
[348195659,1736380240141,-500.0,0.00019178,2]
[348195661,1736380240150,-500.0,0.00019178,2]
[348195663,1736380240159,-580.42098436,0.00019178,2]
[348195665,1736380240169,-500.0,0.00019178,2]
[348195667,1736380240179,-500.0,0.00019178,2]
[348195669,1736380240189,-500.0,0.00019178,2]
[348195671,1736380240199,-500.0,0.00019178,2]
[348195673,1736380240208,-500.0,0.00019178,2]
[348195675,1736380240217,-500.0,0.00019178,2]
[348195677,1736380240227,-531.05,0.00019178,2]
[348195679,1736380240237,-500.0,0.00019178,2]
[348195681,1736380240246,-500.0,0.00019178,2]
[348195692,1736380240340,-500.0,0.00019178,2]
[348195694,1736380240351,-500.0,0.00019178,2]
[348195696,1736380240361,-500.0,0.00019178,2]
[348195698,1736380240370,-385.27,0.00019178,2]
[348195700,1736380240380,-500.0,0.00019178,2]
[348195702,1736380240389,-500.0,0.00019178,2]
[348195704,1736380240399,-500.0,0.00019178,2]
[348195706,1736380240408,-500.0,0.00019178,2]
[348195708,1736380240417,-500.0,0.00019178,2]
[348195710,1736380240427,-500.0,0.00019178,2]
[348195712,1736380240436,-500.0,0.00019178,2]
[348195714,1736380240445,-500.0,0.00019178,2]
[348195716,1736380240455,-500.0,0.00019178,2]
[348195718,1736380240464,-500.0,0.00019178,2]
[348195720,1736380240474,-500.0,0.00019178,2]
[348195722,1736380240483,-500.0,0.00019178,2]
[348195724,1736380240493,-84.70443972,0.00019178,2]
[348195732,1736380240567,-405.85748006,0.00019178,2]
[348195734,1736380240579,-9.43808022,0.00019178,2]
[348195737,1736380240589,-299.22701442,0.00019178,2]
[348195739,1736380240601,-351.92298558,0.00019178,2]
[348195741,1736380240610,-500.0,0.00019178,2]
[348195743,1736380240619,-500.0,0.00019178,2]
[348195745,1736380240628,-521.26735195,0.00019178,2]
[348195747,1736380240638,-500.0,0.00019178,2]
[348195749,1736380240647,-500.0,0.00019178,2]
[348195751,1736380240656,-500.0,0.00019178,2]
[348195753,1736380240666,-500.24093591,0.00019178,2]
[348195755,1736380240675,-500.0,0.00019178,2]
[348195757,1736380240685,-500.0,0.00019178,2]
[348195759,1736380240694,-500.0,0.00019178,2]
[348195761,1736380240704,-714.07,0.00019178,2]
[348195763,1736380240713,-500.0,0.00019178,2]
[348195765,1736380240722,-714.07,0.00019178,2]
[348195767,1736380240732,-714.07,0.00019178,2]
[348195769,1736380240741,-500.0,0.00019178,2]
[348195771,1736380240750,-288.78,0.00019178,2]
[348195773,1736380240759,-458.95713965,0.00019178,2]
[348195775,1736380240773,-255.11286035,0.00019178,2]
[348195777,1736380240782,-418.0924373,0.00019178,2]
[348195783,1736380240827,-295.9775627,0.00019178,2]
[348195785,1736380240836,-500.0,0.00019178,2]
[348195787,1736380240846,-500.0,0.00019178,2]
[348195789,1736380240855,-659.81,0.0001939,3]
[348195791,1736380240865,-696.97107839,0.00019396,3]
[348196065,1736380243582,-910.62892161,0.00019396,3]
[348196067,1736380243592,-151.0,0.00019397,2]
[348196068,1736380243601,-659.81,0.00019397,3]
[348196069,1736380243611,-714.07,0.0001945,3]
[348196070,1736380243620,-160.65806427,0.00019451,2]
[348196071,1736380243629,-491.50625518,0.00019451,2]
[348196072,1736380243638,-214.36103267,0.00019451,2]
[348196074,1736380243648,-659.81,0.00019451,3]
[348196076,1736380243657,-659.81,0.00019451,3]
[348196078,1736380243667,-659.81,0.00019451,3]
[348196080,1736380243678,-714.07,0.00019451,3]
[348196081,1736380243688,-714.07,0.00019451,3]
[348196083,1736380243698,-151.0,0.00019452,2]
[348196086,1736380243707,-151.0,0.00019452,2]
[348196088,1736380243716,-151.0,0.00019452,2]
[348196090,1736380243725,-151.0,0.00019452,2]
[348196092,1736380243735,-500.0,0.00019452,3]
[348196093,1736380243744,-500.0,0.00019452,3]
[348196096,1736380243753,-500.0,0.00019452,3]
[348196098,1736380243763,-500.0,0.00019452,3]
[348196100,1736380243772,-546.69901243,0.00019452,3]
[348196102,1736380243782,-500.0,0.00019452,3]
[348196104,1736380243791,-500.0,0.00019452,3]
[348196106,1736380243801,-500.0,0.00019452,3]
[348196108,1736380243810,-500.0,0.00019452,3]
[348196110,1736380243819,-500.0,0.00019452,3]
[348196112,1736380243829,-500.0,0.00019452,3]
[348196114,1736380243839,-500.0,0.00019452,3]
[348196116,1736380243848,-638.67,0.00019452,3]
[348196118,1736380243857,-500.0,0.00019452,3]
[348196120,1736380243866,-500.0,0.00019452,3]
[348196122,1736380243878,-500.0,0.00019452,3]
[348196124,1736380243888,-500.0,0.00019452,3]
[348196126,1736380243897,-500.0,0.00019452,3]
[348196128,1736380243907,-586.0165001,0.00019452,3]
[348196130,1736380243917,-500.0,0.00019452,3]
[348196132,1736380243927,-500.0,0.00019452,3]
[348196134,1736380243937,-500.0,0.00019452,3]
[348196136,1736380243947,-500.0,0.00019452,3]
[348196138,1736380243957,-500.0,0.00019452,3]
[348196140,1736380243967,-500.0,0.00019452,3]
[348196142,1736380243976,-500.0,0.00019452,3]
[348196144,1736380243985,-500.0,0.00019452,3]
[348196146,1736380243995,-500.0,0.00019452,3]
[348196148,1736380244004,-500.0,0.00019452,3]
[348196150,1736380244014,-618.70096808,0.00019452,3]
[348196152,1736380244023,-500.0,0.00019452,3]
[348196154,1736380244033,-500.0,0.00019452,3]
[348196156,1736380244043,-500.0,0.00019452,3]
[348196158,1736380244052,-500.0,0.00019452,3]
[348196160,1736380244062,-591.5,0.00019452,3]
[348196162,1736380244072,-500.0,0.00019452,3]
[348196164,1736380244081,-628.84515978,0.00019452,3]
[348196166,1736380244091,-475.42,0.00019452,3]
[348196168,1736380244100,-500.0,0.00019452,3]
[348196170,1736380244110,-500.0,0.00019452,3]
[348196172,1736380244119,-614.61032456,0.00019452,3]
[348196174,1736380244129,-500.0,0.00019452,3]
[348196176,1736380244138,-500.0,0.00019452,3]
[348196178,1736380244148,-500.0,0.00019452,3]
[348196181,1736380244158,-500.0,0.00019452,3]
[348196183,1736380244167,-500.0,0.00019452,3]